bitfinex-derivatives/quotes_SOLF0:USTF0_20260314
["timestamp","ask_amount","ask_price","bid_price","bid_amount"]
[1773502616290,10.38,86.686,86.632,9.13967624]
[1773502616489,9.12178236,86.685,86.632,9.13967624]
[1773502616689,9.12178236,86.684,86.632,9.13967624]
[1773502616987,9.12178236,86.683,86.632,9.13967624]
[1773502617187,9.12178236,86.682,86.632,9.13967624]
[1773502617390,10.38,86.686,86.63,3.14739855]
[1773502617391,9.12178236,86.681,86.634,9.13439526]
[1773502617590,9.12178236,86.68,86.634,9.13439526]
[1773502617889,10.38,86.686,86.634,9.13439526]
[1773502618088,10.381,86.684,86.634,9.13439526]
[1773502618289,3.14739855,86.68,86.634,9.13439526]
[1773502619494,10.381,86.684,86.634,9.13439526]
[1773502619693,9.11815537,86.683,86.634,9.13439526]
[1773502619886,9.11815537,86.682,86.634,9.13439526]
[1773502620087,9.11815537,86.681,86.634,9.13439526]
[1773502620287,10.381,86.684,86.634,9.13439526]
[1773502620585,9.11789112,86.683,86.634,9.13439526]
[1773502620886,9.11789112,86.682,86.634,9.13439526]
[1773502621093,9.11789112,86.681,86.634,9.13439526]
[1773502621391,10.381,86.684,86.634,9.13439526]
[1773502621588,9.11655936,86.683,86.634,9.13439526]
[1773502621789,9.11655936,86.682,86.634,9.13439526]
[1773502621988,10.381,86.684,86.634,9.13439526]
[1773502622189,9.11656033,86.683,86.634,9.13439526]
[1773502622394,9.11656033,86.682,86.634,9.13439526]
[1773502622585,10.381,86.684,86.634,9.13439526]
[1773502622783,9.11535192,86.683,86.634,9.13439526]
[1773502622992,9.11535192,86.682,86.634,9.13439526]
[1773502623190,10.381,86.684,86.634,9.13439526]
[1773502623394,9.11425761,86.683,86.637,9.12632399]
[1773502623590,10.381,86.684,86.637,9.12632399]
[1773502623792,9.11425761,86.683,86.637,9.12632399]
[1773502623990,10.381,86.684,86.637,9.12632399]
[1773502624187,9.11598482,86.683,86.637,9.12632399]
[1773502624494,10.381,86.684,86.637,9.12632399]
[1773502624697,9.11499535,86.683,86.637,9.12632399]
[1773502624994,10.381,86.684,86.637,9.12632399]
[1773502625799,9.11407647,86.683,86.637,9.12632399]
[1773502625999,10.381,86.684,86.637,9.12632399]
[1773502626200,9.11407647,86.683,86.637,9.12632399]
[1773502626496,10.381,86.684,86.637,9.12632399]
[1773502627401,10.38,86.692,86.641,9.12633544]
[1773502627701,9.11246499,86.691,86.641,9.12633544]
[1773502627900,9.11246499,86.69,86.641,9.12633544]
[1773502628101,9.11246499,86.689,86.641,9.12633544]
[1773502628301,9.11246499,86.688,86.641,9.12633544]
[1773502628500,9.11246499,86.687,86.641,9.12633544]
[1773502628702,9.11246499,86.686,86.641,9.12633544]
[1773502628899,9.11246499,86.685,86.641,9.12633544]
[1773502629099,9.11246499,86.684,86.642,10.385]
[1773502629298,10.38,86.689,86.643,9.1265181]
[1773502630006,3.14739855,86.71,86.651,9.12885751]
[1773502630198,9.1136037,86.709,86.651,9.12885751]
[1773502630398,3.14739855,86.71,86.651,9.12885751]
[1773502630399,9.1136037,86.708,86.651,9.12885751]
[1773502630600,9.1136037,86.707,86.651,9.12885751]
[1773502630900,9.1136037,86.706,86.651,9.12885751]
[1773502631099,9.1136037,86.705,86.651,9.12885751]
[1773502631297,9.1136037,86.704,86.651,9.12885751]
[1773502631498,9.1136037,86.703,86.653,10.384]
[1773502631704,10.378,86.706,86.654,9.13442484]
[1773502631905,9.10890899,86.705,86.654,9.13442484]
[1773502632104,9.10890899,86.704,86.654,9.13442484]
[1773502632305,9.10890899,86.703,86.654,9.13442484]
[1773502632503,10.378,86.706,86.654,9.13442484]
[1773502632703,9.10729331,86.705,86.657,9.11555177]
[1773502632903,9.10729331,86.704,86.657,9.11555177]
[1773502633103,9.10729331,86.703,86.657,9.11555177]
[1773502633405,10.378,86.706,86.657,9.11555177]
[1773502633608,10.378,86.704,86.657,9.11555177]
[1773502634104,10.377,86.713,86.661,9.11542342]
[1773502634806,10.377,86.713,86.662,10.383]
[1773502635004,3.14739855,86.72,86.671,9.11795876]
[1773502635202,10.376,86.722,86.671,9.11795876]
[1773502635203,9.09590295,86.719,86.671,9.11795876]
[1773502635509,9.09590295,86.718,86.671,9.11795876]
[1773502635710,10.376,86.722,86.671,9.11795876]
[1773502635909,9.09329857,86.721,86.671,9.11795876]
[1773502636107,9.09329857,86.72,86.671,9.11795876]
[1773502636309,9.0910727,86.719,86.671,9.11795876]
[1773502636509,10.376,86.722,86.671,9.11795876]
[1773502636810,10.376,86.719,86.671,9.11795876]
[1773502637609,10.375,86.727,86.674,9.12064978]
[1773502637815,9.08921888,86.726,86.674,9.12064978]
[1773502638009,9.08921888,86.725,86.674,9.12064978]
[1773502638208,10.375,86.727,86.674,9.12064978]
[1773502638411,10.376,86.725,86.674,9.12064978]
[1773502639613,10.374,86.735,86.681,9.12023651]
[1773502640016,3.14739855,86.75,86.691,9.12023651]
[1773502640714,3.14739855,86.74,86.681,9.1201994]
[1773502641510,10.375,86.734,86.681,9.1201994]
[1773502642313,10.375,86.734,86.683,9.10963693]
[1773502642811,10.65800158,86.774,86.687,9.10964381]
[1773502642812,9.06982264,86.772,86.687,9.10964381]
[1773502643018,3.14739855,86.76,86.701,9.10964381]
[1773502643215,9.06982264,86.759,86.701,9.10964381]
[1773502643414,3.14739855,86.76,86.701,9.10964381]
[1773502644520,10.372,86.752,86.704,9.12058175]
[1773502645719,10.371,86.761,86.711,9.13226132]
[1773502651319,10.371,86.761,86.712,9.13333668]
[1773502655222,10.37,86.769,86.721,9.12683997]
[1773502656318,10.37,86.769,86.723,9.13992499]
[1773502658522,13.50994628,86.76,86.71,10.377]
[1773502658726,3.13894628,86.75,86.709,9.16130677]
[1773502659826,10.372,86.753,86.709,9.16130677]
[1773502662719,10.373,86.744,86.709,9.16130677]
[1773502663326,10.372,86.759,86.709,9.16130677]
[1773502670537,3.13894628,86.74,86.681,9.13138423]
[1773502671533,10.374,86.739,86.689,9.13130254]
[1773502678036,3.13894628,86.74,86.695,10.379]
[1773502678241,10.373,86.747,86.696,9.12979811]
[1773502678437,10.373,86.747,86.701,9.12976085]
[1773502682844,10.65800158,86.793,86.721,9.18504201]
[1773502683145,3.13894628,86.79,86.721,9.18504201]
[1773502683345,17.96696003,86.789,86.721,9.18504201]
[1773502683550,17.96696003,86.788,86.721,9.18504201]
[1773502683848,17.96696003,86.787,86.721,9.18504201]
[1773502684051,9.10222834,86.786,86.721,9.18504201]
[1773502684250,3.13894628,86.79,86.721,9.18504201]
[1773502684251,9.10222834,86.785,86.721,9.18504201]
[1773502684445,9.10222834,86.784,86.721,9.18504201]
[1773502684749,10.369,86.778,86.723,9.18999051]
[1773502684951,9.10222834,86.777,86.723,9.18999051]
[1773502685249,9.10222834,86.776,86.723,9.18999051]
[1773502685449,9.10222834,86.775,86.723,9.18999051]
[1773502685645,10.369,86.778,86.723,9.18999051]
[1773502685850,9.10565385,86.777,86.723,9.18999051]
[1773502686051,9.10565385,86.776,86.723,9.18999051]
[1773502686251,9.10565385,86.775,86.723,9.18999051]
[1773502686452,10.369,86.778,86.723,9.18999051]
[1773502686652,9.10500068,86.777,86.725,9.19165528]
[1773502686852,9.10500068,86.776,86.725,9.19165528]
[1773502687151,10.369,86.778,86.725,9.19165528]
[1773502687344,9.10463269,86.777,86.727,9.19167897]
[1773502687549,10.369,86.778,86.727,9.19167897]
[1773502687550,9.10463269,86.776,86.727,9.19167897]
[1773502687751,10.369,86.778,86.727,9.19167897]
[1773502687953,9.10463173,86.777,86.727,9.19167897]
[1773502688152,9.10463173,86.776,86.727,9.19167897]
[1773502688349,10.369,86.778,86.727,9.19167897]
[1773502688647,10.369,86.776,86.727,9.19167897]
[1773502689049,8.86757845,86.795,86.73,10.375]
[1773502689253,3.13894628,86.78,86.731,9.19723641]
[1773502689753,3.13894628,86.77,86.731,9.19723641]
[1773502690355,3.13894628,86.76,86.709,9.25075465]
[1773502690562,3.13894628,86.75,86.709,9.25075465]
[1773502693262,13.50994628,86.76,86.709,9.25075465]
[1773502693462,9.10409922,86.759,86.709,9.25075465]
[1773502693664,9.10409922,86.758,86.709,9.25075465]
[1773502693960,10.37,86.769,86.709,9.25075465]
[1773502694757,3.13894628,86.78,86.721,9.38074154]
[1773502695162,3.13894628,86.78,86.731,9.38074154]
[1773502696172,10.369,86.779,86.731,9.38074154]
[1773502696364,3.13894628,86.77,86.731,9.38074154]
[1773502704369,10.37,86.769,86.72,9.39207828]
[1773502704571,3.13894628,86.76,86.72,9.39207828]
[1773502709476,10.37,86.769,86.72,9.39207828]
[1773502718491,10.371,86.761,86.72,9.39207828]
[1773502720185,10.372,86.753,86.709,9.39663435]
[1773502720391,10.372,86.753,86.63,11.54]
[1773502720392,3.13900582,86.74,86.699,9.39658437]
[1773502721498,10.374,86.739,86.699,9.39658437]
[1773502725396,3.13900582,86.74,86.699,9.39658437]
[1773502725592,3.13900582,86.75,86.699,9.39658437]
[1773502726599,10.374,86.74,86.699,9.39658437]
[1773502727805,10.373,86.748,86.699,9.39658437]
[1773502732103,3.13900582,86.74,86.699,9.39658437]
[1773502737007,10.373,86.748,86.699,9.39658437]
[1773502737208,3.13900582,86.74,86.699,9.39658437]
[1773502744114,10.375,86.733,86.699,9.39658437]
[1773502744315,3.13900582,86.74,86.699,9.39658437]
[1773502749514,3.13900582,86.75,86.7,9.39239312]
[1773502750115,10.371,86.761,86.71,3.13900582]
[1773502750322,3.13900582,86.77,86.711,9.39239312]
[1773502750522,9.07526283,86.769,86.711,9.39239312]
[1773502750721,9.07526283,86.768,86.711,9.39239312]
[1773502750921,9.07526283,86.767,86.711,9.39239312]
[1773502751223,3.13900582,86.77,86.711,9.39239312]
[1773502751521,19.44851881,86.769,86.714,10.377]
[1773502751719,10.37,86.769,86.715,9.40067893]
[1773502752318,10.37,86.769,86.721,9.40067893]
[1773502753323,3.13900582,86.77,86.723,9.40134227]
[1773502754216,13.50900582,86.77,86.723,9.40134227]
[1773502756524,10.37,86.77,86.723,9.40134227]
[1773502757627,13.50900582,86.77,86.723,9.40134227]
[1773502764231,10.371,86.763,86.723,9.40134227]
[1773502781938,36.3,86.789,86.697,36.3]
[1773502781939,10.372,86.756,86.714,9.41242765]
[1773502782240,3.13880516,86.75,86.714,9.41242765]
[1773502786242,10.373,86.749,86.714,9.41242765]
[1773502796354,10.375,86.734,86.701,9.39520657]
[1773502796555,3.13880516,86.73,86.687,9.39520657]
[1773502796854,9.09828112,86.729,86.687,9.39520657]
[1773502797054,3.13880516,86.73,86.687,9.39520657]
[1773502797652,10.375,86.726,86.687,9.39520657]
[1773502798458,10.374,86.736,86.687,9.39520657]
[1773502798656,9.08711807,86.735,86.687,9.39520657]
[1773502798855,10.374,86.736,86.687,9.39520657]
[1773502798856,9.08711807,86.734,86.687,9.39520657]
[1773502799056,10.374,86.736,86.687,9.39520657]
[1773502820670,3.13880516,86.72,86.677,9.40408204]
[1773502820869,3.13880516,86.71,86.677,9.40408204]
[1773502821369,36.3,86.719,86.677,9.40408204]
[1773502821566,10.377,86.717,86.677,9.40408204]
[1773502829084,10.378,86.709,86.666,9.39347243]
[1773502829678,3.13880516,86.7,86.666,9.39347243]
[1773502830780,10.378,86.709,86.666,9.39347243]
[1773502835584,3.14337348,86.71,86.666,9.39347243]
[1773502836681,10.378,86.706,86.666,9.39347243]
[1773502847084,46.677,86.714,86.666,9.39347243]
[1773502847289,36.3,86.714,86.666,9.39347243]
[1773502848692,36.3,86.714,86.667,9.40368479]
[1773502852994,10.377,86.713,86.667,9.40368479]
[1773502859492,36.3,86.714,86.671,9.39889809]
[1773502859687,36.3,86.714,86.673,9.39889809]
[1773502862097,10.377,86.717,86.673,9.39889809]
[1773502863596,10.377,86.71,86.673,9.39889809]
[1773502867198,10.379,86.7,86.673,9.39889809]
[1773502867402,9.18143059,86.719,86.673,9.39889809]
[1773502867609,9.18143059,86.718,86.673,9.39889809]
[1773502867802,3.14337348,86.72,86.673,9.39889809]
[1773502868702,10.378,86.708,86.673,9.39889809]
[1773502872602,10.377,86.716,86.673,9.39889809]
[1773502872902,9.18284934,86.715,86.673,9.39889809]
[1773502873102,9.18284934,86.714,86.673,9.39889809]
[1773502873306,10.377,86.716,86.673,9.39889809]
[1773502873503,9.18308239,86.715,86.673,9.39889809]
[1773502873703,9.18308239,86.714,86.673,9.39889809]
[1773502873906,10.377,86.716,86.673,9.39889809]
[1773502874207,9.12345343,86.715,86.673,9.39889809]
[1773502874405,10.377,86.716,86.673,9.39889809]
[1773502874604,9.12270187,86.715,86.673,9.39889809]
[1773502874806,10.377,86.716,86.673,9.39889809]
[1773502875007,9.12270187,86.715,86.673,9.39889809]
[1773502875203,10.377,86.716,86.673,9.39889809]
[1773502875403,9.12291024,86.715,86.673,9.39889809]
[1773502875604,10.377,86.716,86.673,9.39889809]
[1773502875804,9.12290731,86.715,86.673,9.39889809]
[1773502876103,10.377,86.716,86.673,9.39889809]
[1773502876306,10.377,86.714,86.673,9.39889809]
[1773502883212,10.377,86.712,86.673,9.39889809]
[1773502889216,9.13271769,86.711,86.673,9.39889809]
[1773502889417,10.377,86.712,86.673,9.39889809]
[1773502889614,9.13271769,86.711,86.673,9.39889809]
[1773502889911,10.377,86.712,86.673,9.39889809]
[1773502890122,9.13271769,86.711,86.673,9.39889809]
[1773502890324,10.377,86.712,86.673,9.39889809]
[1773502890518,9.13405852,86.711,86.673,9.39889809]
[1773502890825,10.377,86.712,86.673,9.39889809]
[1773502891126,9.13411038,86.711,86.673,9.39889809]
[1773502891418,10.376,86.721,86.673,9.39889809]
[1773502891623,36.3,86.724,86.673,9.39889809]
[1773502891624,9.1357865,86.72,86.673,9.39889809]
[1773502891922,9.1357865,86.719,86.673,9.39889809]
[1773502892123,9.1357865,86.718,86.673,9.39889809]
[1773502892420,9.1357865,86.717,86.673,9.39889809]
[1773502892621,9.1357865,86.716,86.674,9.29261223]
[1773502892812,9.1357865,86.715,86.674,9.29261223]
[1773502893019,9.1357865,86.714,86.674,9.29261223]
[1773502893318,9.1357865,86.713,86.674,9.29261223]
[1773502893622,10.376,86.723,86.674,9.29261223]
[1773502893824,9.13715016,86.722,86.674,9.29261223]
[1773502894121,9.13715016,86.721,86.674,9.29261223]
[1773502894322,9.13715016,86.72,86.674,9.29261223]
[1773502894524,9.13715016,86.719,86.674,9.29261223]
[1773502894724,9.13715016,86.718,86.674,9.29261223]
[1773502894924,9.13715016,86.717,86.674,9.29261223]
[1773502895121,9.13715016,86.716,86.674,9.29261223]
[1773502895323,9.13715016,86.715,86.674,9.29261223]
[1773502895622,9.13715016,86.714,86.674,9.29261223]
[1773502895826,9.13715016,86.713,86.674,9.29261223]
[1773502896125,9.13715016,86.712,86.674,9.29261223]
[1773502896325,9.13715016,86.711,86.674,9.29261223]
[1773502896518,3.14210094,86.72,86.674,9.29261223]
[1773502896716,9.13715854,86.719,86.674,9.29261223]
[1773502896918,9.13715854,86.718,86.674,9.29261223]
[1773502897117,9.13715854,86.717,86.674,9.29261223]
[1773502897319,9.13715854,86.716,86.674,9.29261223]
[1773502897525,9.13715854,86.715,86.674,9.29261223]
[1773502897726,9.13715854,86.714,86.674,9.29261223]
[1773502898024,9.13715854,86.713,86.674,9.29261223]
[1773502898217,9.13715854,86.712,86.674,9.29261223]
[1773502898415,9.13715854,86.711,86.674,9.29261223]
[1773502898620,10.376,86.719,86.674,9.29261223]
[1773502898822,9.13714243,86.718,86.674,9.29261223]
[1773502899120,9.13714243,86.717,86.674,9.29261223]
[1773502899324,9.13714243,86.716,86.674,9.29261223]
[1773502899525,9.13714243,86.715,86.674,9.29261223]
[1773502899724,9.13714243,86.714,86.674,9.29261223]
[1773502899925,9.13714243,86.713,86.674,9.29261223]
[1773502900126,9.13714243,86.712,86.674,9.29261223]
[1773502900326,9.13714243,86.711,86.674,9.29261223]
[1773502900526,46.676,86.719,86.674,9.29261223]
[1773502900727,9.1371677,86.718,86.674,9.29261223]
[1773502901022,3.14210094,86.71,86.658,9.31216071]
[1773502901224,3.14210094,86.71,86.608,34.59]
[1773502901225,3.14210094,86.69,86.651,9.31216071]
[1773502901729,9.13327952,86.689,86.651,9.31216071]
[1773502901929,3.14210094,86.69,86.651,9.31216071]
[1773502907428,3.14210094,86.7,86.651,9.31216071]
[1773502908630,36.3,86.708,86.651,9.31216071]
[1773502908631,3.14210094,86.69,86.651,9.31216071]
[1773502909228,3.14210094,86.68,86.651,9.31216071]
[1773502909526,13.52210094,86.69,86.651,9.31216071]
[1773502944257,10.38,86.686,86.651,9.31216071]
[1773502946260,9.10894203,86.685,86.651,9.31216071]
[1773502946460,9.10894203,86.684,86.651,9.31216071]
[1773502946652,10.38,86.686,86.651,9.31216071]
[1773502946959,9.10894301,86.685,86.651,9.31216071]
[1773502947260,9.10894301,86.684,86.651,9.31216071]
[1773502947453,10.38,86.686,86.651,9.31216071]
[1773502947759,9.10907132,86.685,86.651,9.31216071]
[1773502947961,9.10907132,86.684,86.651,9.31216071]
[1773502948161,10.38,86.686,86.651,9.31216071]
[1773502948458,9.10921462,86.685,86.651,9.31216071]
[1773502948660,9.10921462,86.684,86.651,9.31216071]
[1773502948964,10.38,86.686,86.651,9.31216071]
[1773502949260,9.10921852,86.685,86.651,9.31216071]
[1773502949462,9.10921852,86.684,86.651,9.31216071]
[1773502949663,10.38,86.686,86.651,9.31216071]
[1773502949863,9.10938005,86.685,86.651,9.31216071]
[1773502950065,9.10938005,86.684,86.651,9.31216071]
[1773502950255,10.38,86.686,86.651,9.31216071]
[1773502950457,9.10955916,86.685,86.651,9.31216071]
[1773502950658,9.10955916,86.684,86.651,9.31216071]
[1773502950866,10.38,86.686,86.651,9.31216071]
[1773502951166,9.10955916,86.685,86.651,9.31216071]
[1773502951368,9.10955916,86.684,86.651,9.31216071]
[1773502951673,10.38,86.686,86.651,9.31216071]
[1773502951968,9.10976463,86.685,86.651,9.31216071]
[1773502952168,9.10976463,86.684,86.651,9.31216071]
[1773502952364,10.38,86.686,86.651,9.31216071]
[1773502952565,9.10998656,86.685,86.651,9.31216071]
[1773502952766,9.10998656,86.684,86.651,9.31216071]
[1773502952966,10.38,86.686,86.651,9.31216071]
[1773502953167,9.10997055,86.685,86.651,9.31216071]
[1773502953366,9.10997055,86.684,86.651,9.31216071]
[1773502953568,9.10997055,86.683,86.651,9.31216071]
[1773502953769,10.38,86.686,86.651,9.31216071]
[1773502954072,9.11160056,86.685,86.651,9.31216071]
[1773502954372,9.11160056,86.684,86.651,9.31216071]
[1773502954670,9.11160056,86.683,86.651,9.31216071]
[1773502954867,9.11160056,86.682,86.651,9.31216071]
[1773502955069,10.38,86.686,86.651,9.31216071]
[1773502955370,9.11534197,86.685,86.651,9.31216071]
[1773502955669,9.11534197,86.684,86.651,9.31216071]
[1773502955867,9.11534197,86.683,86.651,9.31216071]
[1773502956070,9.11534197,86.682,86.651,9.31216071]
[1773502956370,10.38,86.686,86.651,9.31216071]
[1773502956571,9.11533194,86.685,86.651,9.31216071]
[1773502956770,9.11533194,86.684,86.651,9.31216071]
[1773502956974,9.11533194,86.683,86.651,9.31216071]
[1773502957269,9.11533194,86.682,86.651,9.31216071]
[1773502957463,10.38,86.686,86.651,9.31216071]
[1773502957662,9.11532065,86.685,86.651,9.31216071]
[1773502957860,9.11532065,86.684,86.651,9.31216071]
[1773502958071,9.11532065,86.683,86.651,9.31216071]
[1773502958367,9.11532065,86.682,86.651,9.31216071]
[1773502958572,10.38,86.686,86.651,9.31216071]
[1773502958771,9.1153096,86.685,86.651,9.31216071]
[1773502959070,9.1153096,86.684,86.651,9.31216071]
[1773502959267,9.1153096,86.683,86.651,9.31216071]
[1773502959474,9.1153096,86.682,86.651,9.31216071]
[1773502959673,10.38,86.686,86.651,9.31216071]
[1773502959874,9.11529984,86.685,86.651,9.31216071]
[1773502960076,9.11529984,86.684,86.651,9.31216071]
[1773502960276,9.11529984,86.683,86.651,9.31216071]
[1773502960476,9.11529984,86.682,86.651,9.31216071]
[1773502960678,10.38,86.686,86.651,9.31216071]
[1773502960879,9.11529271,86.685,86.651,9.31216071]
[1773502961075,9.11529271,86.684,86.651,9.31216071]
[1773502961282,9.11529271,86.683,86.651,9.31216071]
[1773502961485,9.11529271,86.682,86.651,9.31216071]
[1773502961685,10.38,86.686,86.651,9.31216071]
[1773502961985,9.11546232,86.685,86.651,9.31216071]
[1773502962194,9.11546232,86.684,86.651,9.31216071]
[1773502962382,9.11546232,86.683,86.651,9.31216071]
[1773502962582,9.11546232,86.682,86.651,9.31216071]
[1773502962782,10.38,86.686,86.651,9.31216071]
[1773502962983,9.11530495,86.685,86.651,9.31216071]
[1773502963188,9.11530495,86.684,86.651,9.31216071]
[1773502963386,10.38,86.686,86.651,9.31216071]
[1773502963387,9.11530495,86.683,86.651,9.31216071]
[1773502963588,9.11530495,86.682,86.651,9.31216071]
[1773502963882,10.38,86.686,86.651,9.31216071]
[1773502964086,9.11532935,86.685,86.651,9.31216071]
[1773502964285,9.11532935,86.684,86.651,9.31216071]
[1773502964487,10.38,86.686,86.651,9.31216071]
[1773502964488,9.11532935,86.683,86.651,9.31216071]
[1773502964683,9.11532935,86.682,86.651,9.31216071]
[1773502964885,9.11532935,86.681,86.651,9.31216071]
[1773502965087,10.38,86.686,86.651,9.31216071]
[1773502965288,10.381,86.683,86.651,9.31216071]
[1773502965488,9.14407244,86.682,86.651,9.31216071]
[1773502965688,9.14407244,86.681,86.651,9.31216071]
[1773502965889,10.381,86.683,86.651,9.31216071]
[1773502966086,10.381,86.681,86.651,9.31216071]
[1773502989796,10.38,86.689,86.651,9.31216071]
[1773502990101,9.14115868,86.688,86.651,9.31216071]
[1773502990302,9.14115868,86.687,86.651,9.31216071]
[1773502990502,10.38,86.689,86.651,9.31216071]
[1773502990802,9.1411296,86.688,86.651,9.31216071]
[1773502991100,9.14113108,86.687,86.651,9.31216071]
[1773502991401,10.38,86.689,86.651,9.31216071]
[1773502991599,9.14111167,86.688,86.651,9.31216071]
[1773502991799,9.14111167,86.687,86.651,9.31216071]
[1773502992001,10.38,86.689,86.651,9.31216071]
[1773502992202,9.14111167,86.688,86.651,9.31216071]
[1773502992401,9.14111167,86.687,86.651,9.31216071]
[1773502992602,10.38,86.689,86.651,9.31216071]
[1773502992802,9.14110324,86.688,86.651,9.31216071]
[1773502993102,9.14110324,86.687,86.651,9.31216071]
[1773502993303,10.38,86.689,86.651,9.31216071]
[1773502993602,9.14110913,86.688,86.651,9.31216071]
[1773502993802,9.14110913,86.687,86.651,9.31216071]
[1773502994002,10.38,86.689,86.651,9.31216071]
[1773502994201,9.15504365,86.688,86.651,9.31216071]
[1773502994405,9.15504365,86.687,86.651,9.31216071]
[1773502994703,10.38,86.689,86.651,9.31216071]
[1773502994904,9.15505746,86.688,86.651,9.31216071]
[1773502995102,9.15505746,86.687,86.651,9.31216071]
[1773502995300,10.38,86.689,86.651,9.31216071]
[1773502995497,9.15508216,86.688,86.651,9.31216071]
[1773502995696,9.15508216,86.687,86.651,9.31216071]
[1773502995904,10.38,86.689,86.651,9.31216071]
[1773502996104,9.15508216,86.688,86.651,9.31216071]
[1773502996304,9.15508216,86.687,86.651,9.31216071]
[1773502996506,10.38,86.689,86.651,9.31216071]
[1773502996703,9.15511839,86.688,86.651,9.31216071]
[1773502996903,9.15511839,86.687,86.651,9.31216071]
[1773502997105,10.38,86.689,86.651,9.31216071]
[1773502997305,9.15514253,86.688,86.651,9.31216071]
[1773502997504,9.15514253,86.687,86.651,9.31216071]
[1773502997706,10.38,86.689,86.651,9.31216071]
[1773502997908,9.15516934,86.688,86.651,9.31216071]
[1773502998209,9.15519907,86.687,86.651,9.31216071]
[1773502998404,10.38,86.689,86.651,9.31216071]
[1773502998602,3.14463359,86.7,86.651,9.31216071]
[1773502998603,10.38,86.687,86.651,9.31216071]
[1773503001405,9.15552784,86.686,86.651,9.31216071]
[1773503001608,10.38,86.687,86.651,9.31216071]
[1773503001806,9.15552784,86.686,86.651,9.31216071]
[1773503002101,10.38,86.687,86.651,9.31216071]
[1773503002306,9.15561589,86.686,86.651,9.31216071]
[1773503002502,10.38,86.687,86.651,9.31216071]
[1773503002707,9.15565572,86.686,86.651,9.31216071]
[1773503002906,10.38,86.687,86.651,9.31216071]
[1773503003209,9.15565868,86.686,86.651,9.31216071]
[1773503003403,10.38,86.687,86.651,9.31216071]
[1773503003608,9.15580352,86.686,86.651,9.31216071]
[1773503003911,10.38,86.687,86.651,9.31216071]
[1773503004111,9.15580352,86.686,86.651,9.31216071]
[1773503004414,10.38,86.687,86.651,9.31216071]
[1773503004709,10.381,86.683,86.651,9.31216071]
[1773503015915,10.38,86.691,86.651,9.31216071]
[1773503016211,9.16270351,86.69,86.651,9.31216071]
[1773503016417,9.16270351,86.689,86.651,9.31216071]
[1773503016614,9.16270351,86.688,86.651,9.31216071]
[1773503016809,9.16270351,86.687,86.651,9.31216071]
[1773503017008,9.16270351,86.686,86.651,9.31216071]
[1773503017216,9.16270351,86.685,86.651,9.31216071]
[1773503017414,9.16270351,86.684,86.651,9.31216071]
[1773503017618,10.38,86.688,86.651,9.31216071]
[1773503017817,9.16269796,86.687,86.651,9.31216071]
[1773503018017,9.16269796,86.686,86.651,9.31216071]
[1773503018318,9.16269796,86.685,86.651,9.31216071]
[1773503018616,9.16269796,86.684,86.651,9.31216071]
[1773503018817,10.38,86.688,86.651,9.31216071]
[1773503019009,9.16269029,86.687,86.651,9.31216071]
[1773503019217,9.16269029,86.686,86.651,9.31216071]
[1773503019414,9.16269029,86.685,86.651,9.31216071]
[1773503019615,10.38,86.688,86.651,9.31216071]
[1773503019819,9.16164436,86.687,86.651,9.31216071]
[1773503020122,9.16164436,86.686,86.651,9.31216071]
[1773503020320,9.16164436,86.685,86.651,9.31216071]
[1773503020615,10.38,86.688,86.651,9.31216071]
[1773503020817,9.16166383,86.687,86.651,9.31216071]
[1773503021018,9.16166383,86.686,86.651,9.31216071]
[1773503021218,9.16166383,86.685,86.651,9.31216071]
[1773503021418,10.379,86.696,86.651,9.31216071]
[1773503021623,9.16166903,86.695,86.651,9.31216071]
[1773503021821,9.16166903,86.694,86.651,9.31216071]
[1773503022021,9.16166903,86.693,86.651,9.31216071]
[1773503022222,10.38,86.69,86.651,9.31216071]
[1773503022521,9.16166903,86.689,86.651,9.31216071]
[1773503022722,9.16166903,86.688,86.651,9.31216071]
[1773503022922,9.16166903,86.687,86.651,9.31216071]
[1773503023123,9.16166903,86.686,86.651,9.31216071]
[1773503023318,9.16166903,86.685,86.651,9.31216071]
[1773503023516,13.52459754,86.69,86.651,9.31216071]
[1773503023720,9.16165052,86.689,86.651,9.31216071]
[1773503023921,9.16165052,86.688,86.651,9.31216071]
[1773503024125,9.16165052,86.687,86.651,9.31216071]
[1773503024327,9.16165052,86.686,86.651,9.31216071]
[1773503024526,9.16165052,86.685,86.651,9.31216071]
[1773503024822,13.52459754,86.69,86.651,9.31216071]
[1773503025022,9.14430496,86.689,86.651,9.31216071]
[1773503025225,9.14430496,86.688,86.651,9.31216071]
[1773503025423,9.14430496,86.687,86.651,9.31216071]
[1773503025723,9.14430496,86.686,86.651,9.31216071]